[Event "IIFL Wealth  4th Mumbai Junior U-13"]
[Site "Mumbai"]
[Date "2019.01.07"]
[Round "9"]
[White "Raghu Ram Reddy Seelam"]
[Black "Tejes Suresh Kumar"]
[Result "0-1"]
[ECO "C54"]
[WhiteElo "1472"]
[BlackElo "1618"]
[Annotator "NA RC"]
[PlyCount "90"]
[EventDate "2018.12.30"]
[EventType "swiss"]
[EventCountry "IND"]
[SourceTitle "playchess.com"]
[Source "ChessBase"]
[SourceQuality "1"]
[TimeControl "40/5400+30:1800+30"]

1. e4 {[%emt 0:00:00]} e5 {[%emt 0:05:21]} 2. Nf3 {[%emt 0:00:12]} Nc6 {[%emt 0:00:04]} 3. Bc4 {[%emt 0:00:29]} Bc5 {[%emt 0:00:06]} 4. c3 {[%emt 0:00:49]} Nf6 {[%emt 0:00:04]} 5. d3 {[%emt 0:00:11]} O-O {[%emt 0:00:03]} 6. O-O {[%emt 0:02:19]} d5 7. exd5 {[%emt 0:01:24]} Nxd5 {[%emt 0:00:14]} 8. Re1 {[%emt 0:00:27]} Bg4 {[%emt 0:01:00]} 9. h3 {[%emt 0:04:05]} Bh5 {[%emt 0:05:53]} 10. Nbd2 {[%emt 0:02:10]} Nb6 {[%emt 0:00:45]} 11. Qe2 {[%emt 0:11:30]} Nxc4 {[%emt 0:10:22]} 12. Nxc4 {[%emt 0:03:40]} Re8 {[%emt 0:01:15]} 13. b4 {[%emt 0:10:23]} Bf8 {[%emt 0:07:04]} 14. Ne3 {[%emt 0:13:39]} f6 {[%emt 0:03:55]} 15. Rd1 {[%emt 0:01:54]} Qd7 {[%emt 0:03:00]} 16. Bb2 {[%emt 0:01:40]} Rad8 {[%emt 0:01:59]} 17. Nf1 {[%emt 0:05:24]} Bg6 {[%emt 0:08:47]} 18. Ne1 Qf7 {[%emt 0:03:27]} 19. Ng3 {[%emt 0:03:13]} Rd7 {[%emt 0:13:54]} 20. a3 {[%emt 0:12:24]} Nd8 {[%emt 0:03:26]} 21. Rd2 {[%emt 0:02:53]} Ne6 {[%emt 0:00:48]} 22. Rad1 {[%emt 0:00:41]} Nf4 {[%emt 0:03:03]} 23. Qe3 {[%emt 0:00:47]} a5 {[%emt 0:02:20]} 24. Ne2 {[%emt 0:07:08]} Nd5 {[%emt 0:00:45]} 25. Qa7 {[%emt 0:02:49]} axb4 {[%emt 0:00:12]} 26. axb4 {[%emt 0:00:14]} b6 {[%emt 0:00:49]} 27. Qa3 {[%emt 0:00:54]} f5 28. Qb3 {[%emt 0:06:00]} b5 {[%emt 0:03:09]} 29. Qc2 {[%emt 0:02:46]} c6 {[%emt 0:00:59]} 30. Qc1 {[%emt 0:00:30]} e4 {[%emt 0:01:46]} 31. Ng3 {[%emt 0:02:55]} e3 {[%emt 0:00:37]} 32. Re2 {[%emt 0:00:14]} f4 {[%emt 0:00:33]} 33. Nf1 {[%emt 0:00:48]} Bh5 {[%emt 0:04:15]} 34. f3 {[%emt 0:00:10]} Ne7 {[%emt 0:01:15]} 35. Nc2 {[%emt 0:00:45]} Nf5 {[%emt 0:00:08]} 36. Nd4 {[%emt 0:00:07]} Nh4 {[%emt 0:03:00]} 37. Nh2 {[%emt 0:01:05]} Qg6 {[%emt 0:04:02]} 38. Kh1 {[%emt 0:00:21]} Nf5 {[%emt 0:02:01]} 39. Nxf5 {[%emt 0:00:27]} Qxf5 {[%emt 0:00:01]} 40. d4 {[%emt 0:00:00]} Bf7 {[%emt 0:00:00]} 41. Qb1 {[%emt 0:00:58]} Qg5 {[%emt 0:02:24]} 42. Bc1 {[%emt 0:03:13]} Bc4 {[%emt 0:00:37]} 43. Ree1 {[%emt 0:00:13]} h5 {[%emt 0:03:37]} 44. Qb2 {[%emt 0:05:03]} e2 {[%emt 0:01:09]} 45. Rd2 {[%emt 0:01:51]} Qg3 {[%emt 0:00:04]} 0-1

[Event "IIFL Wealth  4th Mumbai Junior U-13"]
[Site "Mumbai"]
[Date "2019.01.07"]
[Round "9"]
[White "Adireddy Arjun"]
[Black "Pingale Shivraj"]
[Result "1/2-1/2"]
[ECO "C00"]
[WhiteElo "1468"]
[BlackElo "1580"]
[Annotator "NA RC"]
[PlyCount "75"]
[EventDate "2018.12.30"]
[EventType "swiss"]
[EventCountry "IND"]
[SourceTitle "playchess.com"]
[Source "ChessBase"]
[SourceQuality "1"]
[TimeControl "40/5400+30:1800+30"]

1. e4 {[%emt 0:00:00]} e6 {[%emt 0:00:00]} 2. d4 {[%emt 0:00:00]} d5 {[%emt 0:00:00]} 3. Bd3 {[%emt 0:00:02]} c5 {[%emt 0:01:06]} 4. exd5 {[%emt 0:00:10]} exd5 {[%emt 0:00:07]} 5. Nf3 {[%emt 0:00:07]} Nf6 6. O-O {[%emt 0:01:41]} Be7 {[%emt 0:01:38]} 7. dxc5 {[%emt 0:01:30]} O-O {[%emt 0:02:43]} 8. Be3 {[%emt 0:02:50]} Bg4 {[%emt 0:02:48]} 9. Nbd2 {[%emt 0:02:27]} Nc6 {[%emt 0:05:23]} 10. c3 {[%emt 0:00:38]} Ne5 {[%emt 0:01:30]} 11. Be2 {[%emt 0:00:14]} Nxf3+ {[%emt 0:00:48]} 12. Nxf3 {[%emt 0:00:33]} Ne4 {[%emt 0:01:04]} 13. h3 {[%emt 0:01:48]} Bh5 {[%emt 0:03:33]} 14. Qd3 {[%emt 0:01:08]} Bxc5 {[%emt 0:07:51]} 15. Rad1 {[%emt 0:15:28]} Bxe3 {[%emt 0:04:58]} 16. Qxe3 {[%emt 0:07:42]} Nf6 {[%emt 0:04:19]} 17. Qf4 {[%emt 0:02:38]} Qb6 {[%emt 0:05:50]} 18. Qb4 Qxb4 19. cxb4 {[%emt 0:01:01]} Rac8 {[%emt 0:00:52]} 20. g4 {[%emt 0:02:40]} Bg6 {[%emt 0:02:21]} 21. Rc1 {[%emt 0:00:12]} Rfd8 {[%emt 0:01:49]} 22. Nd4 {[%emt 0:00:37]} Ne4 {[%emt 0:04:37]} 23. Rfd1 {[%emt 0:04:56]} f6 24. Kg2 {[%emt 0:01:25]} Nd6 {[%emt 0:15:29]} 25. f3 {[%emt 0:01:29]} Bf7 {[%emt 0:02:02]} 26. b3 {[%emt 0:00:15]} Kf8 {[%emt 0:02:45]} 27. Rc5 {[%emt 0:00:54]} b6 {[%emt 0:03:58]} 28. Rcc1 {[%emt 0:01:04]} Rxc1 {[%emt 0:00:05]} 29. Rxc1 {[%emt 0:00:11]} Rc8 {[%emt 0:00:02]} 30. Rxc8+ {[%emt 0:00:53]} Nxc8 {[%emt 0:00:06]} 31. Ba6 {[%emt 0:00:06]} Ne7 {[%emt 0:02:38]} 32. Bb5 {[%emt 0:06:45]} Be8 {[%emt 0:07:33]} 33. Ne6+ {[%emt 0:01:54]} Kf7 {[%emt 0:00:22]} 34. Nd8+ {[%emt 0:05:35]} Kf8 {[%emt 0:00:10]} 35. Ne6+ {[%emt 0:00:50]} Kf7 {[%emt 0:00:05]} 36. Nd8+ {[%emt 0:00:35]} Kf8 {[%emt 0:00:13]} 37. Ne6+ {[%emt 0:00:09]} Kf7 {[%emt 0:00:10]} 38. Nd8+ {[%emt 0:01:49]} 1/2-1/2

[Event "IIFL Wealth  4th Mumbai Junior U-13"]
[Site "Mumbai"]
[Date "2019.01.07"]
[Round "9"]
[White "Sairaj Dilip Vernekar"]
[Black "Shreyas Ghadi"]
[Result "1/2-1/2"]
[ECO "C00"]
[WhiteElo "1445"]
[BlackElo "1653"]
[Annotator "NA RC"]
[PlyCount "121"]
[EventDate "2018.12.30"]
[EventType "swiss"]
[EventCountry "IND"]
[SourceTitle "playchess.com"]
[Source "ChessBase"]
[SourceQuality "1"]
[TimeControl "40/5400+30:1800+30"]

1. e4 {[%emt 0:00:00]} e6 {[%emt 0:01:08]} 2. d4 {[%emt 0:00:00]} d5 {[%emt 0:00:05]} 3. Bd3 {[%emt 0:00:00]} Nf6 {[%emt 0:00:05]} 4. e5 {[%emt 0:01:52]} Nfd7 {[%emt 0:00:13]} 5. Nf3 {[%emt 0:01:23]} c5 {[%emt 0:00:05]} 6. c3 {[%emt 0:00:28]} Nc6 {[%emt 0:00:14]} 7. Be3 {[%emt 0:04:26]} cxd4 {[%emt 0:03:21]} 8. cxd4 {[%emt 0:01:15]} f6 {[%emt 0:00:09]} 9. exf6 {[%emt 0:10:42]} Nxf6 {[%emt 0:00:12]} 10. O-O {[%emt 0:00:08]} Bd6 {[%emt 0:00:04]} 11. Nc3 {[%emt 0:00:49]} O-O {[%emt 0:01:25]} 12. Ng5 {[%emt 0:06:05]} Bd7 {[%emt 0:08:28]} 13. f4 {[%emt 0:11:51]} h6 {[%emt 0:05:40]} 14. Nf3 {[%emt 0:00:32]} Ng4 {[%emt 0:00:57]} 15. Bd2 {[%emt 0:08:42]} Nf6 {[%emt 0:44:18]} 16. Ne2 {[%emt 0:07:21]} Qb6 {[%emt 0:01:31]} 17. Bc3 {[%emt 0:00:12]} Rae8 {[%emt 0:04:00]} 18. Kh1 {[%emt 0:02:37]} a6 {[%emt 0:09:10]} 19. h3 {[%emt 0:05:31]} Ne7 {[%emt 0:05:12]} 20. Ne5 {[%emt 0:01:18]} Bb5 {[%emt 0:00:21]} 21. g4 {[%emt 0:07:13]} Bxd3 {[%emt 0:00:37]} 22. Qxd3 {[%emt 0:00:07]} Bxe5 {[%emt 0:01:04]} 23. dxe5 {[%emt 0:02:22]} Ne4 {[%emt 0:00:06]} 24. Bd4 {[%emt 0:00:23]} Qd8 {[%emt 0:01:20]} 25. Ng3 {[%emt 0:01:24]} Nc6 {[%emt 0:00:20]} 26. Rad1 {[%emt 0:03:28]} Nxd4 {[%emt 0:03:47]} 27. Nxe4 {[%emt 0:00:11]} dxe4 {[%emt 0:00:04]} 28. Qxd4 {[%emt 0:00:08]} Qxd4 {[%emt 0:00:04]} 29. Rxd4 {[%emt 0:00:12]} Rc8 {[%emt 0:03:20]} 30. Rxe4 {[%emt 0:00:10]} Rc2 {[%emt 0:00:01]} 31. f5 {[%emt 0:02:48]} Rxb2 {[%emt 0:01:55]} 32. Ref4 {[%emt 0:01:06]} Re2 {[%emt 0:00:45]} 33. Rb1 {[%emt 0:08:50]} b5 {[%emt 0:01:09]} 34. a4 {[%emt 0:01:16]} Rxe5 {[%emt 0:00:15]} 35. axb5 {[%emt 0:00:28]} axb5 {[%emt 0:00:01]} 36. Rfb4 {[%emt 0:00:22]} exf5 {[%emt 0:00:10]} 37. Rxb5 {[%emt 0:00:08]} Rxb5 {[%emt 0:00:03]} 38. Rxb5 {[%emt 0:00:06]} fxg4 {[%emt 0:00:04]} 39. hxg4 {[%emt 0:00:06]} Rf4 {[%emt 0:00:04]} 40. g5 {[%emt 0:00:00]} hxg5 {[%emt 0:00:00]} 41. Rxg5 {[%emt 0:00:32]} Kf7 {[%emt 0:04:57]} 42. Kg2 {[%emt 0:01:21]} Kf6 {[%emt 0:00:12]} 43. Ra5 {[%emt 0:00:07]} g5 {[%emt 0:00:13]} 44. Kg3 {[%emt 0:00:30]} Kg6 {[%emt 0:00:48]} 45. Ra6+ {[%emt 0:00:35]} Kh5 {[%emt 0:00:06]} 46. Ra8 {[%emt 0:00:26]} Rb4 {[%emt 0:00:33]} 47. Rh8+ {[%emt 0:00:43]} Kg6 {[%emt 0:00:00]} 48. Rg8+ {[%emt 0:01:05]} Kf6 {[%emt 0:00:02]} 49. Rf8+ {[%emt 0:00:35]} Kg7 {[%emt 0:00:08]} 50. Ra8 {[%emt 0:00:30]} Rb6 {[%emt 0:00:06]} 51. Kg4 {[%emt 0:00:43]} Kh6 {[%emt 0:00:28]} 52. Rh8+ {[%emt 0:00:43]} Kg6 {[%emt 0:00:07]} 53. Rg8+ {[%emt 0:00:05]} Kh6 {[%emt 0:00:05]} 54. Rh8+ {[%emt 0:00:09]} Kg6 {[%emt 0:00:36]} 55. Rg8+ {[%emt 0:00:20]} Kf6 {[%emt 0:00:05]} 56. Rxg5 {[%emt 0:01:03]} Rb4+ {[%emt 0:00:09]} 57. Kh5 {[%emt 0:00:14]} Rb1 {[%emt 0:00:00]} 58. Rg6+ {[%emt 0:00:21]} Kf5 {[%emt 0:00:00]} 59. Rg5+ {[%emt 0:00:08]} Kf6 {[%emt 0:00:00]} 60. Rg6+ {[%emt 0:00:05]} Kf7 {[%emt 0:00:00]} 61. Ra6 {[%emt 0:00:20]} 1/2-1/2

[Event "IIFL Wealth  4th Mumbai Junior U-13"]
[Site "Mumbai"]
[Date "2019.01.07"]
[Round "9"]
[White "Athalye Varad"]
[Black "Savitha Shri B"]
[Result "0-1"]
[ECO "B44"]
[WhiteElo "1442"]
[BlackElo "1894"]
[Annotator "NA RC"]
[PlyCount "82"]
[EventDate "2018.12.30"]
[EventType "swiss"]
[EventCountry "IND"]
[SourceTitle "playchess.com"]
[Source "ChessBase"]
[SourceQuality "1"]
[TimeControl "40/5400+30:1800+30"]

1. e4 {[%emt 0:00:00]} c5 {[%emt 0:00:00]} 2. Nf3 {[%emt 0:00:12]} Nc6 {[%emt 0:00:00]} 3. d4 {[%emt 0:00:10]} cxd4 {[%emt 0:00:00]} 4. Nxd4 {[%emt 0:00:03]} e6 {[%emt 0:00:00]} 5. c4 {[%emt 0:01:42]} Nf6 {[%emt 0:00:37]} 6. Nc3 {[%emt 0:00:50]} Bb4 {[%emt 0:03:46]} 7. Nxc6 {[%emt 0:01:15]} bxc6 {[%emt 0:00:02]} 8. Qc2 {[%emt 0:00:16]} Qc7 {[%emt 0:03:59] B44: Sicilian: Taimanov: 5 Nb5} (8... e5 9. Bd3 Be7 10. O-O d6 11. b3 O-O 12. Bb2 Be6 13. Na4 Qc7 14. Rae1 Nd7 15. Be2 Rad8 16. Bf3 Nb6 17. Nc3 Nd7 18. Na4 Nb6 19. Nc3 Nd7 {½-½ (19) Galic,I (2416)-Sebenik,M (2570) Biograd 2018}) 9. Bd2 $146 {[%emt 0:00:32]} ({Predecessor:} 9. Bd3 O-O 10. O-O Ng4 11. g3 Ne5 12. a3 Nxd3 13. Qxd3 Be7 14. Bf4 e5 15. Be3 d6 16. f4 {½-½ (37) Krueger,G (2034)-Straub,P (2096) Berlin 2015}) 9... a5 {[%emt 0:01:13]} 10. Be2 {[%emt 0:01:47]} O-O {[%emt 0:03:16]} 11. O-O {[%emt 0:01:22]} d5 {[%emt 0:02:10]} 12. exd5 {[%emt 0:03:11]} exd5 {[%emt 0:01:35]} 13. Bg5 {[%emt 0:01:17]} Bxc3 {[%emt 0:00:40]} 14. Qxc3 {[%emt 0:05:47]} Ne4 {[%emt 0:00:13]} 15. Qc1 {[%emt 0:00:28]} Ba6 {[%emt 0:09:49]} 16. Re1 {[%emt 0:05:16]} Qb6 {[%emt 0:08:18]} 17. Be3 {[%emt 0:09:11]} Qd8 {[%emt 0:12:43]} 18. cxd5 {[%emt 0:01:32]} Bxe2 {[%emt 0:00:36]} 19. Rxe2 {[%emt 0:00:32]} cxd5 {[%emt 0:00:06]} 20. f3 {[%emt 0:00:54]} Rc8 {[%emt 0:11:07]} 21. Qd1 {[%emt 0:01:25]} Nf6 {[%emt 0:00:22]} 22. Rd2 {[%emt 0:01:02]} Re8 {[%emt 0:09:40]} 23. Bg5 {[%emt 0:04:13]} h6 {[%emt 0:01:55]} 24. Bxf6 {[%emt 0:01:44]} Qxf6 {[%emt 0:00:24]} 25. b3 {[%emt 0:00:50]} Rcd8 {[%emt 0:00:48]} 26. Rd4 {[%emt 0:01:33]} Re3 {[%emt 0:02:28]} 27. Qd2 {[%emt 0:02:23] [#]} Rde8 {[%emt 0:00:33]} (27... Re2 $1 $19 {[%cal Re2d2][%mdl 512]} 28. Qc3 (28. Qxe2 Qxd4+) 28... Rde8) 28. Rd1 {[%emt 0:05:40]} Re2 {[%emt 0:01:16]} 29. Qc1 {[%emt 0:10:55]} Qg6 {[%emt 0:03:17]} 30. Rg4 {[%emt 0:01:02]} Qb6+ {[%emt 0:00:06]} 31. Rgd4 {[%emt 0:03:23]} Rxa2 {[%emt 0:05:49]} 32. Kh1 {[%emt 0:02:09]} Ree2 {[%emt 0:11:59]} 33. Qc8+ {[%emt 0:02:20]} Kh7 {[%emt 0:00:02]} 34. Qg4 {[%emt 0:00:02]} Qe6 {[%emt 0:01:16]} 35. Qg3 {[%emt 0:00:49]} Rab2 {[%emt 0:03:24]} ({Don't take} 35... Rxg2 36. Qxg2 Rxg2 37. Kxg2 $17) 36. Rxd5 $2 {[%emt 0:00:37] [#]} (36. h3) 36... Qxd5 $19 {[%emt 0:00:40] Double Attack} 37. Rg1 {[%emt 0:00:25]} Qg5 {[%emt 0:00:05]} 38. Qd6 {[%emt 0:00:18]} Rxg2 {[%emt 0:00:17]} 39. Qd3+ {[%emt 0:00:04]} g6 {[%emt 0:00:08]} 40. Qxg6+ {[%emt 0:00:00]} Qxg6 {[%emt 0:00:00]} 41. b4 {[%emt 0:00:18]} Rxh2# {[%emt 0:00:15]} 0-1

[Event "IIFL Wealth  4th Mumbai Junior U-13"]
[Site "Mumbai"]
[Date "2019.01.07"]
[Round "9"]
[White "Arjun Kumar S"]
[Black "Haldankar Dhruv"]
[Result "1/2-1/2"]
[ECO "C44"]
[WhiteElo "1428"]
[BlackElo "1245"]
[Annotator "NA RC"]
[PlyCount "85"]
[EventDate "2018.12.30"]
[EventType "swiss"]
[EventCountry "IND"]
[SourceTitle "playchess.com"]
[Source "ChessBase"]
[SourceQuality "1"]
[TimeControl "40/5400+30:1800+30"]

1. e4 {[%emt 0:07:40]} e5 {[%emt 0:00:04]} 2. Nf3 {[%emt 0:00:06]} Nc6 {[%emt 0:00:15]} 3. d4 {[%emt 0:00:04]} exd4 {[%emt 0:00:08]} 4. Bc4 {[%emt 0:00:06]} Bc5 {[%emt 0:00:07]} 5. Ng5 {[%emt 0:01:18]} Nh6 {[%emt 0:02:15]} 6. Qh5 {[%emt 0:01:00]} Qe7 {[%emt 0:07:20]} 7. Nxf7 Bb4+ {[%emt 0:07:15]} 8. c3 {[%emt 0:05:06]} Nxf7 {[%emt 0:00:09]} 9. cxb4 {[%emt 0:01:04]} Qxb4+ {[%emt 0:10:05]} 10. Nd2 {[%emt 0:01:24]} Nce5 {[%emt 0:08:20]} 11. Bxf7+ {[%emt 0:00:19]} Nxf7 {[%emt 0:00:07]} 12. a3 {[%emt 0:01:00]} Qe7 {[%emt 0:02:20]} 13. O-O {[%emt 0:00:32]} O-O {[%emt 0:08:41]} 14. b4 {[%emt 0:06:31]} d6 {[%emt 0:07:54]} 15. Bb2 c5 16. Rac1 {[%emt 0:04:30]} b6 {[%emt 0:02:01]} 17. f4 {[%emt 0:00:07]} Ba6 {[%emt 0:03:22]} 18. Rfe1 {[%emt 0:01:21]} Qf6 {[%emt 0:05:43]} 19. g3 {[%emt 0:07:59]} Rfe8 {[%emt 0:08:34]} 20. e5 {[%emt 0:06:54]} dxe5 {[%emt 0:01:17]} 21. Ne4 {[%emt 0:00:06]} Qg6 {[%emt 0:04:46]} 22. Qxg6 {[%emt 0:00:14]} hxg6 {[%emt 0:00:02]} 23. bxc5 {[%emt 0:00:45]} exf4 {[%emt 0:00:06]} 24. Bxd4 {[%emt 0:02:56]} fxg3 {[%emt 0:00:47]} 25. hxg3 {[%emt 0:00:05]} Rad8 {[%emt 0:03:09]} 26. cxb6 {[%emt 0:01:17]} axb6 {[%emt 0:11:58]} 27. Bxb6 {[%emt 0:01:21]} Ra8 {[%emt 0:00:03]} 28. Bc5 {[%emt 0:01:40]} Ne5 {[%emt 0:01:05]} 29. Ng5 {[%emt 0:01:21]} Nd3 {[%emt 0:02:22]} 30. Rxe8+ {[%emt 0:00:11]} Rxe8 {[%emt 0:00:01]} 31. Rc3 {[%emt 0:00:14]} Re5 {[%emt 0:00:04]} 32. Bd4 {[%emt 0:03:44]} Rxg5 {[%emt 0:00:06]} 33. Rc7 {[%emt 0:00:02]} Ne5 {[%emt 0:00:49]} 34. Kf2 {[%emt 0:00:46]} Nf7 {[%emt 0:00:45]} 35. Ra7 {[%emt 0:01:13]} Ra5 {[%emt 0:01:32]} 36. Ra8+ {[%emt 0:00:08]} Kh7 {[%emt 0:00:28]} 37. Ra7 {[%emt 0:00:07]} Kg8 {[%emt 0:01:37]} 38. Ra8+ {[%emt 0:00:07]} Kh7 {[%emt 0:00:01]} 39. Ra7 {[%emt 0:00:08]} Kg8 {[%emt 0:01:08]} 40. Ra8+ {[%emt 0:00:39]} Kh7 {[%emt 0:00:11]} 41. Ra7 {[%emt 0:30:35]} Kg8 {[%emt 0:00:15]} 42. Ra8+ {[%emt 0:00:00]} Kh7 {[%emt 0:00:04]} 43. Ra7 {[%emt 0:00:00]} 1/2-1/2

[Event "IIFL Wealth  4th Mumbai Junior U-13"]
[Site "Mumbai"]
[Date "2019.01.07"]
[Round "9"]
[White "Abhyuday Santhosh"]
[Black "Ananya Parikh"]
[Result "1-0"]
[ECO "D36"]
[WhiteElo "1409"]
[BlackElo "1235"]
[Annotator "NA RC"]
[PlyCount "127"]
[EventDate "2018.12.30"]
[EventType "swiss"]
[EventCountry "IND"]
[SourceTitle "playchess.com"]
[Source "ChessBase"]
[SourceQuality "1"]
[TimeControl "40/5400+30:1800+30"]

1. d4 {[%emt 0:04:55]} Nf6 {[%emt 0:00:46]} 2. c4 {[%emt 0:00:19]} e6 {[%emt 0:00:27]} 3. Nc3 {[%emt 0:00:05]} d5 {[%emt 0:00:23]} 4. cxd5 {[%emt 0:00:08]} exd5 {[%emt 0:00:08]} 5. Bg5 {[%emt 0:00:07]} c6 {[%emt 0:01:14]} 6. Qc2 {[%emt 0:00:36]} Be7 {[%emt 0:01:36]} 7. e3 {[%emt 0:00:59]} Nbd7 {[%emt 0:00:33]} 8. Bd3 {[%emt 0:00:15]} h6 {[%emt 0:01:12]} 9. Bh4 {[%emt 0:00:31]} Nh5 {[%emt 0:02:26]} 10. Bxe7 {[%emt 0:00:17]} Qxe7 {[%emt 0:00:08]} 11. O-O-O {[%emt 0:00:26]} Nhf6 {[%emt 0:08:58]} 12. Nf3 {[%emt 0:00:46]} Nb6 {[%emt 0:03:26]} 13. Kb1 {[%emt 0:00:39]} Be6 {[%emt 0:03:17]} 14. h3 {[%emt 0:00:44]} O-O-O {[%emt 0:06:44]} 15. Na4 {[%emt 0:02:07]} Nxa4 {[%emt 0:04:08]} 16. Qxa4 {[%emt 0:00:13]} Kb8 {[%emt 0:04:29]} 17. Ne5 {[%emt 0:00:52]} Nd7 {[%emt 0:07:35]} 18. Nf3 {[%emt 0:01:44]} Nb6 {[%emt 0:03:10]} 19. Qb3 {[%emt 0:00:05]} f6 {[%emt 0:01:53]} 20. Nd2 {[%emt 0:00:17]} Qd7 {[%emt 0:03:07]} 21. Qc2 {[%emt 0:01:15]} Rhe8 {[%emt 0:06:11]} 22. Nb3 {[%emt 0:02:23]} Na4 {[%emt 0:04:59]} 23. Rc1 {[%emt 0:02:05]} Rc8 {[%emt 0:03:37]} 24. g4 {[%emt 0:01:04]} Rf8 {[%emt 0:03:24]} 25. Qd2 {[%emt 0:00:33]} Nb6 {[%emt 0:08:07]} 26. Nc5 {[%emt 0:01:20]} Qd6 {[%emt 0:03:26]} 27. Nxe6 {[%emt 0:01:00]} Qxe6 {[%emt 0:03:37]} 28. Bf5 {[%emt 0:00:08]} Qe7 {[%emt 0:02:15]} 29. Bxc8 {[%emt 0:00:10]} Rxc8 {[%emt 0:02:02]} 30. Qd3 {[%emt 0:00:36]} Nc4 {[%emt 0:01:14]} 31. Rc3 {[%emt 0:00:31]} Ka8 {[%emt 0:01:53]} 32. Rhc1 {[%emt 0:01:53]} Qb4 {[%emt 0:02:18]} 33. Qe2 {[%emt 0:00:42]} a5 {[%emt 0:02:35]} 34. h4 {[%emt 0:12:56]} Qb5 {[%emt 0:00:58]} 35. R1c2 {[%emt 0:03:11]} a4 {[%emt 0:00:57]} 36. Rxc4 {[%emt 0:00:48]} dxc4 {[%emt 0:00:06]} 37. Rxc4 {[%emt 0:00:06]} Kb8 {[%emt 0:01:49]} 38. Qc2 {[%emt 0:01:32]} a3 {[%emt 0:00:52]} 39. Qb3 {[%emt 0:00:48]} Qxb3 {[%emt 0:00:53]} 40. axb3 {[%emt 0:00:00]} axb2 {[%emt 0:00:00]} 41. Kxb2 {[%emt 0:00:24]} Re8 {[%emt 0:02:46]} 42. Rc3 {[%emt 0:01:02]} h5 {[%emt 0:02:18]} 43. gxh5 {[%emt 0:01:09]} Re4 44. f4 {[%emt 0:00:22]} Kc7 {[%emt 0:07:52]} 45. Kc2 {[%emt 0:01:08]} b6 {[%emt 0:07:29]} 46. Kd3 {[%emt 0:00:15]} Re8 {[%emt 0:00:21]} 47. Rc2 {[%emt 0:00:08]} Kb7 {[%emt 0:01:51]} 48. Rg2 {[%emt 0:00:12]} Re7 {[%emt 0:03:15]} 49. h6 {[%emt 0:00:00]} gxh6 {[%emt 0:00:19]} 50. Rg6 {[%emt 0:00:00]} f5 {[%emt 0:01:28]} 51. Rxh6 {[%emt 0:00:00]} Rd7 {[%emt 0:00:29]} 52. Rf6 {[%emt 0:00:05]} Rh7 {[%emt 0:00:27]} 53. Rxf5 {[%emt 0:00:06]} Rxh4 {[%emt 0:00:07]} 54. Rf7+ {[%emt 0:00:07]} Kc8 {[%emt 0:01:01]} 55. f5 {[%emt 0:00:04]} c5 {[%emt 0:01:09]} 56. f6 {[%emt 0:00:25]} cxd4 {[%emt 0:00:19]} 57. exd4 {[%emt 0:00:21]} Rh3+ {[%emt 0:01:02]} 58. Kc4 {[%emt 0:00:04]} b5+ {[%emt 0:01:00]} 59. Kb4 {[%emt 0:00:12]} Rh4 {[%emt 0:01:24]} 60. Kc5 {[%emt 0:00:26]} Kd8 {[%emt 0:00:44]} 61. Rb7 {[%emt 0:00:32]} Rf4 {[%emt 0:01:08]} 62. f7 {[%emt 0:00:08]} Kc8 {[%emt 0:01:05]} 63. Re7 {[%emt 0:00:09]} Kd8 {[%emt 0:00:55]} 64. Re8+ {[%emt 0:00:16]} 1-0

[Event "IIFL Wealth  4th Mumbai Junior U-13"]
[Site "Mumbai"]
[Date "2019.01.07"]
[Round "9"]
[White "Daakshin Arun"]
[Black "Riddhika Kotia"]
[Result "1-0"]
[ECO "D52"]
[WhiteElo "1400"]
[BlackElo "1213"]
[Annotator "NA RC"]
[PlyCount "113"]
[EventDate "2018.12.30"]
[EventType "swiss"]
[EventCountry "IND"]
[SourceTitle "playchess.com"]
[Source "ChessBase"]
[SourceQuality "1"]
[TimeControl "40/5400+30:1800+30"]

1. d4 {[%emt 0:00:00]} d5 {[%emt 0:02:06]} 2. c4 e6 {[%emt 0:00:03]} 3. Nc3 {[%emt 0:00:00]} Nf6 {[%emt 0:00:34]} 4. Bg5 {[%emt 0:00:00]} Nbd7 {[%emt 0:00:55]} 5. Nf3 {[%emt 0:00:06]} c6 {[%emt 0:00:14]} 6. e3 {[%emt 0:00:05]} Qa5 {[%emt 0:01:00]} 7. Bh4 {[%emt 0:00:06]} Bb4 {[%emt 0:01:56]} 8. Qb3 {[%emt 0:00:40]} O-O {[%emt 0:05:31]} 9. a3 {[%emt 0:00:57]} Ne4 {[%emt 0:04:35]} 10. Qxb4 {[%emt 0:00:49]} Qxb4 {[%emt 0:01:22]} 11. axb4 {[%emt 0:00:03]} Nxc3 {[%emt 0:06:04]} 12. bxc3 {[%emt 0:00:05]} Re8 {[%emt 0:02:14]} 13. cxd5 {[%emt 0:00:09]} exd5 {[%emt 0:00:20]} 14. Bd3 {[%emt 0:00:27]} h6 {[%emt 0:05:59]} 15. Bf5 {[%emt 0:00:35]} Nb6 {[%emt 0:02:36]} 16. Bxc8 {[%emt 0:00:07]} Nxc8 {[%emt 0:00:58]} 17. O-O {[%emt 0:00:30]} Nd6 {[%emt 0:00:46]} 18. Bg3 {[%emt 0:00:33]} Ne4 {[%emt 0:00:48]} 19. Rfc1 {[%emt 0:00:12]} Nxg3 {[%emt 0:02:29]} 20. hxg3 {[%emt 0:00:04]} a6 {[%emt 0:01:53]} 21. Ne5 {[%emt 0:00:14]} f6 {[%emt 0:00:42]} 22. Nd3 {[%emt 0:00:04]} Kf7 {[%emt 0:20:02]} 23. Nc5 {[%emt 0:00:04]} Rab8 {[%emt 0:00:48]} 24. Nd7 {[%emt 0:00:28]} Rbd8 {[%emt 0:00:24]} 25. Nc5 {[%emt 0:00:08]} Re7 {[%emt 0:00:31]} 26. Kf1 {[%emt 0:00:06]} g5 {[%emt 0:00:38]} 27. Ke2 {[%emt 0:00:50]} b6 {[%emt 0:02:18]} 28. Nxa6 {[%emt 0:00:15]} Ra8 {[%emt 0:02:02]} 29. b5 {[%emt 0:00:04]} Rea7 {[%emt 0:02:30]} 30. Rab1 {[%emt 0:00:11]} cxb5 {[%emt 0:00:58]} 31. Nb4 {[%emt 0:00:06]} Ke6 {[%emt 0:09:44]} 32. Rh1 {[%emt 0:00:46]} Rh7 {[%emt 0:00:49]} 33. Ra1 {[%emt 0:00:20]} Rc8 {[%emt 0:00:55]} 34. Kd3 {[%emt 0:00:16]} Kd6 {[%emt 0:05:25]} 35. g4 {[%emt 0:00:47]} Rd8 {[%emt 0:00:39]} 36. Ra6 {[%emt 0:00:12]} Rb8 {[%emt 0:00:40]} 37. Rh5 {[%emt 0:00:28]} Ke6 {[%emt 0:01:40]} 38. g3 {[%emt 0:00:21]} Kd6 {[%emt 0:00:14]} 39. Rh1 {[%emt 0:00:05]} Ke6 {[%emt 0:00:12]} 40. Re1 {[%emt 0:00:00]} Rd7 {[%emt 0:00:00]} 41. f3 {[%emt 0:00:27]} Kd6 {[%emt 0:03:20]} 42. e4 {[%emt 0:00:22]} dxe4+ {[%emt 0:00:13]} 43. fxe4 {[%emt 0:00:06]} Ke6 {[%emt 0:01:56]} 44. d5+ {[%emt 0:00:09]} Kd6 {[%emt 0:00:36]} 45. Rf1 {[%emt 0:00:04]} Rf7 {[%emt 0:00:52]} 46. Kd4 {[%emt 0:00:20]} Rbb7 {[%emt 0:01:10]} 47. Nc6 {[%emt 0:00:20]} Kd7 {[%emt 0:00:42]} 48. e5 {[%emt 0:00:19]} Rf8 {[%emt 0:01:58]} 49. e6+ {[%emt 0:00:43]} Kd6 {[%emt 0:00:34]} 50. e7 {[%emt 0:00:05]} Re8 {[%emt 0:01:50]} 51. Rxf6+ {[%emt 0:00:06]} Kd7 {[%emt 0:00:24]} 52. Ke5 {[%emt 0:00:08]} Rxe7+ {[%emt 0:05:01]} 53. Nxe7 {[%emt 0:00:05]} Kxe7 {[%emt 0:00:15]} 54. d6+ {[%emt 0:00:03]} Kd8 {[%emt 0:00:18]} 55. Ra8+ {[%emt 0:00:10]} Kd7 {[%emt 0:00:30]} 56. Kd5 {[%emt 0:00:13]} b4 {[%emt 0:00:13]} 57. Rf7# {[%emt 0:00:03]} 1-0